{"text_format":"1","workbook":"xlsx","n_sheets":4,"sheets":["Лист1","печать","Реестр","Лист3"],"not_rendered":{"charts":0,"images":1,"macros":0,"external_links":0,"defined_names":5,"comments":0,"pivot_tables":0},"unopened":[],"bounds":{"document_bytes":16777216,"sheet_cells":100000,"rows_first":2000,"rows_last":500,"rows_between":2000,"halvings":0,"cell_chars":16384,"cell_head_chars":4096},"cells_cut":0,"cells_raw":0,"read":"whole","date_system":"1900"}

{"sheet":"Лист1","index":0,"n_rows":30,"n_cols":16,"rows_kept":30,"cut":false,"hidden":true,"merged":[]}
["Талон на питание Сотрудника ООО \"Бауцентр Рус\" ТЦ№2 \"15\"февраля 2011 г.         ","Талон на питание Сотрудника ООО \"Бауцентр Рус\" ТЦ№2 \"15\"февраля 2011 г.         ","Талон на питание Сотрудника ООО \"Бауцентр Рус\" ТЦ№2 \"15\"февраля 2011 г.         ","Талон на питание Сотрудника ООО \"Бауцентр Рус\" ТЦ№2 \"15\"февраля 2011 г.         "]
["Талон на питание Сотрудника ООО \"Бауцентр Рус\" ТЦ№2 \"15\"февраля 2011 г.         ","Талон на питание Сотрудника ООО \"Бауцентр Рус\" ТЦ№2 \"15\"февраля 2011 г.         ","Талон на питание Сотрудника ООО \"Бауцентр Рус\" ТЦ№2 \"15\"февраля 2011 г.         ","Талон на питание Сотрудника ООО \"Бауцентр Рус\" ТЦ№2 \"15\"февраля 2011 г.         "]
["Талон на питание Сотрудника ООО \"Бауцентр Рус\" ТЦ№2 \"15\"февраля 2011 г.         ","Талон на питание Сотрудника ООО \"Бауцентр Рус\" ТЦ№2 \"15\"февраля 2011 г.         ","Талон на питание Сотрудника ООО \"Бауцентр Рус\" ТЦ№2 \"15\"февраля 2011 г.         ","Талон на питание Сотрудника ООО \"Бауцентр Рус\" ТЦ№2 \"15\"февраля 2011 г.         "]
["Талон на питание Сотрудника ООО \"Бауцентр Рус\" ТЦ№2 \"15\"февраля 2011 г.         ","Талон на питание Сотрудника ООО \"Бауцентр Рус\" ТЦ№2 \"15\"февраля 2011 г.         ","Талон на питание Сотрудника ООО \"Бауцентр Рус\" ТЦ№2 \"15\"февраля 2011 г.         ","Талон на питание Сотрудника ООО \"Бауцентр Рус\" ТЦ№2 \"15\"февраля 2011 г.         ",null,"                                                                                                                            "]
["Талон на питание Сотрудника ООО \"Бауцентр Рус\" ТЦ№2 \"15\"февраля 2011 г.         ","Талон на питание Сотрудника ООО \"Бауцентр Рус\" ТЦ№2 \"15\"февраля 2011 г.         ","Талон на питание Сотрудника ООО \"Бауцентр Рус\" ТЦ№2 \"15\"февраля 2011 г.         ","Талон на питание Сотрудника ООО \"Бауцентр Рус\" ТЦ№2 \"15\"февраля 2011 г.         "]
["Талон на питание Сотрудника ООО \"Бауцентр Рус\" ТЦ№2 \"15\"февраля 2011 г.         ","Талон на питание Сотрудника ООО \"Бауцентр Рус\" ТЦ№2 \"15\"февраля 2011 г.         ","Талон на питание Сотрудника ООО \"Бауцентр Рус\" ТЦ№2 \"15\"февраля 2011 г.         ","Талон на питание Сотрудника ООО \"Бауцентр Рус\" ТЦ№2 \"15\"февраля 2011 г.         "]
["Талон на питание Сотрудника ООО \"Бауцентр Рус\" ТЦ№2 \"15\"февраля 2011 г.         ","Талон на питание Сотрудника ООО \"Бауцентр Рус\" ТЦ№2 \"15\"февраля 2011 г.         ","Талон на питание Сотрудника ООО \"Бауцентр Рус\" ТЦ№2 \"15\"февраля 2011 г.         ","Талон на питание Сотрудника ООО \"Бауцентр Рус\" ТЦ№2 \"15\"февраля 2011 г.         "]
["Талон на питание Сотрудника ООО \"Бауцентр Рус\" ТЦ№2 \"15\"февраля 2011 г.         ","Талон на питание Сотрудника ООО \"Бауцентр Рус\" ТЦ№2 \"15\"февраля 2011 г.         ","Талон на питание Сотрудника ООО \"Бауцентр Рус\" ТЦ№2 \"15\"февраля 2011 г.         ","Талон на питание Сотрудника ООО \"Бауцентр Рус\" ТЦ№2 \"15\"февраля 2011 г.         ","                    "]
["Талон на питание Сотрудника  ООО \"Бауцентр Рус\"  ТЦ№2   \"11\"августа 2010 г.","Талон на питание Сотрудника  ООО \"Бауцентр Рус\"  ТЦ№2   \"11\"августа 2010 г.","Талон на питание Сотрудника  ООО \"Бауцентр Рус\"  ТЦ№2   \"11\"августа 2010 г.","Талон на питание Сотрудника  ООО \"Бауцентр Рус\"  ТЦ№2   \"11\"августа 2010 г."]
["Талон на питание Сотрудника  ООО \"Бауцентр Рус\"  ТЦ№2   \"11\"августа 2010 г.","Талон на питание Сотрудника  ООО \"Бауцентр Рус\"  ТЦ№2   \"11\"августа 2010 г.","Талон на питание Сотрудника  ООО \"Бауцентр Рус\"  ТЦ№2   \"11\"августа 2010 г.","Талон на питание Сотрудника  ООО \"Бауцентр Рус\"  ТЦ№2   \"11\"августа 2010 г.",null,null,"                                 "]
[]
[]
[]
[]
[]
[]
[]
[]
[]
[]
[]
[]
[]
[]
[]
[]
[null,null,null,null,null,null,"                                                                                                                                                   "]
[]
[]
[null,null,null,null,null,null,null,null,null,null,null,null,null,null,null,"ИЮНЯ"]

{"sheet":"печать","index":1,"n_rows":32,"n_cols":26,"rows_kept":32,"cut":false,"hidden":false,"merged":[[17,6,18,6],[17,7,18,7],[17,8,18,8],[17,9,18,9],[13,6,14,6],[13,7,14,7],[13,8,14,8],[13,9,14,9],[15,6,16,6],[15,7,16,7],[15,8,16,8],[15,9,16,9],[9,6,10,6],[9,7,10,7],[9,8,10,8],[9,9,10,9],[11,6,12,6],[11,7,12,7],[11,8,12,8],[11,9,12,9],[5,6,6,6],[5,7,6,7],[5,8,6,8],[5,9,6,9],[7,6,8,6],[7,7,8,7],[7,8,8,8],[7,9,8,9],[1,6,2,6],[1,7,2,7],[1,8,2,8],[1,9,2,9],[3,6,4,6],[3,7,4,7],[3,8,4,8],[3,9,4,9]]}
[]
[null,"Купон на скидку\nсотрудника ООО \n\"Фирма 1 Рус\" ТЦ№2","Купон на скидку\nсотрудника ООО \n\"Фирма 1 Рус\" ТЦ№2","Купон на скидку\nсотрудника ООО \n\"Фирма 1 Рус\" ТЦ№2","Купон на скидку\nсотрудника ООО \n\"Фирма 1 Рус\" ТЦ№2",null,{"$f":"M2","v":"9 9"},{"$f":"G2","v":"9 9"},{"$f":"G2","v":"9 9"},{"$f":"G2","v":"9 9"},null,"''01\"сентября 2015г.","9 9",null,null,{"$f":"CONCATENATE(\"''\",U2,V2,W2,X2)","v":"''01\"ноября 2015г."},null,"1 1",null,"Купон на скидку\nсотрудника ООО \n\"Фирма 1 Рус\" ТЦ№2 \n'","01","\"","ноября"," 2015г.",null,"января"]
[null,{"$f":"L2","v":"''01\"сентября 2015г."},{"$f":"B3","v":"''01\"сентября 2015г."},{"$f":"B3","v":"''01\"сентября 2015г."},{"$f":"B3","v":"''01\"сентября 2015г."},null,null,null,null,null,null,"''02\"сентября 2015г.","1 1",null,null,{"$f":"CONCATENATE(\"''\",U3,V3,W3,X3)","v":"''02\"ноября 2015г."},null,"2 2",null,"Купон на скидку\nсотрудника ООО \n\"Фирма 1 Рус\" ТЦ№2 \n'","02","\"",{"$f":"W2","v":"ноября"},{"$f":"X2","v":" 2015г."},null,"февраля"]
[null,"Купон на скидку\nсотрудника ООО \n\"Фирма 1 Рус\" ТЦ№2","Купон на скидку\nсотрудника ООО \n\"Фирма 1 Рус\" ТЦ№2","Купон на скидку\nсотрудника ООО \n\"Фирма 1 Рус\" ТЦ№2","Купон на скидку\nсотрудника ООО \n\"Фирма 1 Рус\" ТЦ№2",null,{"$f":"G2","v":"9 9"},{"$f":"G2","v":"9 9"},{"$f":"G2","v":"9 9"},{"$f":"G2","v":"9 9"},null,"''03\"сентября 2015г.","1 1",null,null,"''03\"ноября 2015г.",null,"3 3",null,"Купон на скидку\nсотрудника ООО \n\"Фирма 1 Рус\" ТЦ№2 \n'","03","\"",{"$f":"W3","v":"ноября"},{"$f":"X3","v":" 2015г."},null,"марта"]
[null,{"$f":"B3","v":"''01\"сентября 2015г."},{"$f":"B3","v":"''01\"сентября 2015г."},{"$f":"B3","v":"''01\"сентября 2015г."},{"$f":"B3","v":"''01\"сентября 2015г."},null,null,null,null,null,null,null,null,null,null,"''04\"ноября 2015г.",null,"4 4",null,"Купон на скидку\nсотрудника ООО \n\"Фирма 1 Рус\" ТЦ№2 \n'","04","\"",{"$f":"W4","v":"ноября"}," 2015г.",null,"апреля"]
[null,"Купон на скидку\nсотрудника ООО \n\"Фирма 1 Рус\" ТЦ№2","Купон на скидку\nсотрудника ООО \n\"Фирма 1 Рус\" ТЦ№2","Купон на скидку\nсотрудника ООО \n\"Фирма 1 Рус\" ТЦ№2","Купон на скидку\nсотрудника ООО \n\"Фирма 1 Рус\" ТЦ№2",null,{"$f":"G2","v":"9 9"},{"$f":"G2","v":"9 9"},{"$f":"G2","v":"9 9"},{"$f":"G2","v":"9 9"},null,null,"                                                                                                                                                                                                                                                                                                                                                                                                                                                                                              ",null,null,"''05\"ноября 2015г.",null,"5 5",null,"Купон на скидку\nсотрудника ООО \n\"Фирма 1 Рус\" ТЦ№2 \n'","05","\"","ноября"," 2015г.",null,"мая"]
[null,{"$f":"B3","v":"''01\"сентября 2015г."},{"$f":"B3","v":"''01\"сентября 2015г."},{"$f":"B3","v":"''01\"сентября 2015г."},{"$f":"B3","v":"''01\"сентября 2015г."},null,null,null,null,null,null,null,null,null,null,"''06\"ноября 2015г.",null,"6 6",null,"Купон на скидку\nсотрудника ООО \n\"Фирма 1 Рус\" ТЦ№2 \n'","06","\"","ноября"," 2015г.",null,"июня"]
[null,"Купон на скидку\nсотрудника ООО \n\"Фирма 1 Рус\" ТЦ№2","Купон на скидку\nсотрудника ООО \n\"Фирма 1 Рус\" ТЦ№2","Купон на скидку\nсотрудника ООО \n\"Фирма 1 Рус\" ТЦ№2","Купон на скидку\nсотрудника ООО \n\"Фирма 1 Рус\" ТЦ№2",null,{"$f":"M3","v":"1 1"},{"$f":"M3","v":"1 1"},{"$f":"M3","v":"1 1"},{"$f":"M3","v":"1 1"},null,null,null,null,null,"''07\"ноября 2015г.",null,"7 6",null,"Купон на скидку\nсотрудника ООО \n\"Фирма 1 Рус\" ТЦ№2 \n'","07","\"","ноября"," 2015г.",null,"июля"]
[null,{"$f":"L3","v":"''02\"сентября 2015г."},{"$f":"L3","v":"''02\"сентября 2015г."},{"$f":"L3","v":"''02\"сентября 2015г."},{"$f":"L3","v":"''02\"сентября 2015г."},null,null,null,null,null,null,null,null,null,null,"''08\"ноября 2015г.",null,"8 8",null,"Купон на скидку\nсотрудника ООО \n\"Фирма 1 Рус\" ТЦ№2 \n'","08","\"","ноября"," 2015г.",null,"августа"]
[null,"Купон на скидку\nсотрудника ООО \n\"Фирма 1 Рус\" ТЦ№2","Купон на скидку\nсотрудника ООО \n\"Фирма 1 Рус\" ТЦ№2","Купон на скидку\nсотрудника ООО \n\"Фирма 1 Рус\" ТЦ№2","Купон на скидку\nсотрудника ООО \n\"Фирма 1 Рус\" ТЦ№2",null,{"$f":"M3","v":"1 1"},{"$f":"M3","v":"1 1"},{"$f":"M3","v":"1 1"},{"$f":"M3","v":"1 1"},null,null,null,null,null,"''09\"ноября 2015г.",null,"9 9",null,"Купон на скидку\nсотрудника ООО \n\"Фирма 1 Рус\" ТЦ№2 \n'","09","\"","ноября"," 2015г.",null,"сентября"]
[null,{"$f":"L3","v":"''02\"сентября 2015г."},{"$f":"L3","v":"''02\"сентября 2015г."},{"$f":"L3","v":"''02\"сентября 2015г."},{"$f":"L3","v":"''02\"сентября 2015г."},null,null,null,null,null,null,null,null,null,null,"''10\"ноября 2015г.",null,"отдел Профи",null,"Купон на скидку\nсотрудника ООО \n\"Фирма 1 Рус\" ТЦ№2 \n'","10","\"","ноября"," 2015г.",null,"октября"]
[null,"Купон на скидку\nсотрудника ООО \n\"Фирма 1 Рус\" ТЦ№2","Купон на скидку\nсотрудника ООО \n\"Фирма 1 Рус\" ТЦ№2","Купон на скидку\nсотрудника ООО \n\"Фирма 1 Рус\" ТЦ№2","Купон на скидку\nсотрудника ООО \n\"Фирма 1 Рус\" ТЦ№2",null,{"$f":"M3","v":"1 1"},{"$f":"M3","v":"1 1"},{"$f":"M3","v":"1 1"},{"$f":"M3","v":"1 1"},null,null,null,null,null,"''11\"ноября 2015г.",null,"отдел доставка",null,"Купон на скидку\nсотрудника ООО \n\"Фирма 1 Рус\" ТЦ№2 \n'","11","\"","ноября"," 2015г.",null,"ноября"]
[null,{"$f":"L3","v":"''02\"сентября 2015г."},{"$f":"L3","v":"''02\"сентября 2015г."},{"$f":"L3","v":"''02\"сентября 2015г."},{"$f":"L3","v":"''02\"сентября 2015г."},null,null,null,null,null,null,null,null,null,null,"''12\"ноября 2015г.",null,"тех.персонал",null,"Купон на скидку\nсотрудника ООО \n\"Фирма 1 Рус\" ТЦ№2 \n'","12","\"","ноября"," 2015г.",null,"декабря"]
[null,"Купон на скидку\nсотрудника ООО \n\"Фирма 1 Рус\" ТЦ№2","Купон на скидку\nсотрудника ООО \n\"Фирма 1 Рус\" ТЦ№2","Купон на скидку\nсотрудника ООО \n\"Фирма 1 Рус\" ТЦ№2","Купон на скидку\nсотрудника ООО \n\"Фирма 1 Рус\" ТЦ№2",null,{"$f":"M4","v":"1 1"},{"$f":"M4","v":"1 1"},{"$f":"M4","v":"1 1"},{"$f":"M4","v":"1 1"},null,null,null,null,null,"''13\"ноября 2015г.",null,null,null,"Купон на скидку\nсотрудника ООО \n\"Фирма 1 Рус\" ТЦ№2 \n'","13","\"","ноября"," 2015г."]
[null,{"$f":"L4","v":"''03\"сентября 2015г."},{"$f":"L4","v":"''03\"сентября 2015г."},{"$f":"L4","v":"''03\"сентября 2015г."},{"$f":"L4","v":"''03\"сентября 2015г."},null,null,null,null,null,null,null,null,null,null,"''14\"ноября 2015г.",null,null,null,"Купон на скидку\nсотрудника ООО \n\"Фирма 1 Рус\" ТЦ№2 \n'","14","\"","ноября"," 2015г."]
[null,"Купон на скидку\nсотрудника ООО \n\"Фирма 1 Рус\" ТЦ№2","Купон на скидку\nсотрудника ООО \n\"Фирма 1 Рус\" ТЦ№2","Купон на скидку\nсотрудника ООО \n\"Фирма 1 Рус\" ТЦ№2","Купон на скидку\nсотрудника ООО \n\"Фирма 1 Рус\" ТЦ№2",null,{"$f":"M4","v":"1 1"},{"$f":"M4","v":"1 1"},{"$f":"M4","v":"1 1"},{"$f":"M4","v":"1 1"},null,"нужно разное количество талонов! это никак не могу настроить",null,null,null,"''15\"ноября 2015г.",null,null,null,"Купон на скидку\nсотрудника ООО \n\"Фирма 1 Рус\" ТЦ№2 \n'","15","\"","ноября"," 2015г."]
[null,{"$f":"L4","v":"''03\"сентября 2015г."},{"$f":"L4","v":"''03\"сентября 2015г."},{"$f":"L4","v":"''03\"сентября 2015г."},{"$f":"L4","v":"''03\"сентября 2015г."},null,null,null,null,null,null,"двусторонняя печать",null,null,null,"''16\"ноября 2015г.",null,null,null,"Купон на скидку\nсотрудника ООО \n\"Фирма 1 Рус\" ТЦ№2 \n'","16","\"","ноября"," 2015г."]
[null,"Купон на скидку\nсотрудника ООО \n\"Фирма 1 Рус\" ТЦ№2","Купон на скидку\nсотрудника ООО \n\"Фирма 1 Рус\" ТЦ№2","Купон на скидку\nсотрудника ООО \n\"Фирма 1 Рус\" ТЦ№2","Купон на скидку\nсотрудника ООО \n\"Фирма 1 Рус\" ТЦ№2",null,{"$f":"M4","v":"1 1"},{"$f":"M4","v":"1 1"},{"$f":"M4","v":"1 1"},{"$f":"M4","v":"1 1"},null,"на одной стороне название юр. лица + дата",null,null,null,"''17\"ноября 2015г.",null,null,null,"Купон на скидку\nсотрудника ООО \n\"Фирма 1 Рус\" ТЦ№2 \n'","17","\"","ноября"," 2015г."]
[null,{"$f":"L4","v":"''03\"сентября 2015г."},{"$f":"L4","v":"''03\"сентября 2015г."},{"$f":"L4","v":"''03\"сентября 2015г."},{"$f":"L4","v":"''03\"сентября 2015г."},null,null,null,null,null,null,"на обратной номер отдела",null,null,null,"''18\"ноября 2015г.",null,null,null,"Купон на скидку\nсотрудника ООО \n\"Фирма 1 Рус\" ТЦ№2 \n'","18","\"","ноября"," 2015г."]
[null,null,null,null,null,null,null,null,null,null,null,null,null,null,null,"''19\"ноября 2015г.",null,null,null,"Купон на скидку\nсотрудника ООО \n\"Фирма 1 Рус\" ТЦ№2 \n'","19","\"","ноября"," 2015г."]
[null,null,null,null,null,null,null,null,null,null,null,null,null,null,null,"''20\"ноября 2015г.",null,null,null,"Купон на скидку\nсотрудника ООО \n\"Фирма 1 Рус\" ТЦ№2 \n'","20","\"","ноября"," 2015г."]
[null,null,null,null,null,null,null,null,null,null,null,null,null,null,null,"''21\"ноября 2015г.",null,null,null,"Купон на скидку\nсотрудника ООО \n\"Фирма 1 Рус\" ТЦ№2 \n'","21","\"","ноября"," 2015г."]
[null,null,null,null,null,null,null,null,null,null,null,null,null,null,null,"''22\"ноября 2015г.",null,null,null,"Купон на скидку\nсотрудника ООО \n\"Фирма 1 Рус\" ТЦ№2 \n'","22","\"","ноября"," 2015г."]
[null,null,null,null,null,null,null,null,null,null,null,null,null,null,null,"''23\"ноября 2015г.",null,null,null,"Купон на скидку\nсотрудника ООО \n\"Фирма 1 Рус\" ТЦ№2 \n'","23","\"","ноября"," 2015г."]
[null,null,null,null,null,null,null,null,null,null,null,null,null,null,null,"''24\"ноября 2015г.",null,null,null,"Купон на скидку\nсотрудника ООО \n\"Фирма 1 Рус\" ТЦ№2 \n'","24","\"","ноября"," 2015г."]
[null,null,null,null,null,null,null,null,null,null,null,null,null,null,null,"''25\"ноября 2015г.",null,null,null,"Купон на скидку\nсотрудника ООО \n\"Фирма 1 Рус\" ТЦ№2 \n'","25","\"","ноября"," 2015г."]
[null,null,null,null,null,null,null,null,null,null,null,null,null,null,null,"''26\"ноября 2015г.",null,null,null,"Купон на скидку\nсотрудника ООО \n\"Фирма 1 Рус\" ТЦ№2 \n'","26","\"","ноября"," 2015г."]
[null,null,null,null,null,null,null,null,null,null,null,null,null,null,null,"''27\"ноября 2015г.",null,null,null,"Купон на скидку\nсотрудника ООО \n\"Фирма 1 Рус\" ТЦ№2 \n'","27","\"","ноября"," 2015г."]
[null,null,null,null,null,null,null,null,null,null,null,null,null,null,null,"''28\"ноября 2015г.",null,null,null,"Купон на скидку\nсотрудника ООО \n\"Фирма 1 Рус\" ТЦ№2 \n'","28","\"","ноября"," 2015г."]
[null,null,null,null,null,null,null,null,null,null,null,null,null,null,null,"''29\"ноября 2015г.",null,null,null,"Купон на скидку\nсотрудника ООО \n\"Фирма 1 Рус\" ТЦ№2 \n'","29","\"","ноября"," 2015г."]
[null,null,null,null,null,null,null,null,null,null,null,null,null,null,null,"''30\"ноября 2015г.",null,null,null,"Купон на скидку\nсотрудника ООО \n\"Фирма 1 Рус\" ТЦ№2 \n'","30","\"","ноября"," 2015г."]
[null,null,null,null,null,null,null,null,null,null,null,null,null,null,null,"''31\"ноября 2015г.",null,null,null,"Купон на скидку\nсотрудника ООО \n\"Фирма 1 Рус\" ТЦ№2 \n'","31","\"","ноября"," 2015г."]

{"sheet":"Реестр","index":2,"n_rows":17,"n_cols":4,"rows_kept":17,"cut":false,"hidden":false,"merged":[[3,0,4,0],[3,1,4,1],[3,2,4,2],[0,0,0,3]]}
["РЕЕСТР ТАЛОНОВ ПИТАНИЯ"]
[null,"г. Краснодар",null,{"$f":"NOW()","v":"2015-10-21T14:07:02.060"}]
[]
["№ пп","Отдел","Должность, ФИО","Получил"]
[null,null,null,"(Дата, роспись)"]
["1.","1."]
["2.","2."]
["3.","3."]
["4.","4."]
["5.","5."]
["6.","6."]
["7.","7."]
["8.","8."]
["9.","9."]
["10.","10."]
["11.","11."]
["12.","12."]

{"sheet":"Лист3","index":3,"n_rows":10,"n_cols":5,"rows_kept":10,"cut":false,"hidden":true,"merged":[]}
[]
[null,"9 сад и огород","9 сад и огород","9 сад и огород","9 сад и огород"]
[null,"9 сад и огород","9 сад и огород","9 сад и огород","9 сад и огород"]
[null,"9 сад и огород","9 сад и огород","9 сад и огород","9 сад и огород"]
[null,"9 сад и огород","9 сад и огород","9 сад и огород","9 сад и огород"]
[null,"9 сад и огород","9 сад и огород","9 сад и огород","9 сад и огород"]
[null,"9 сад и огород","9 сад и огород","9 сад и огород","9 сад и огород"]
[null,"9 сад и огород","9 сад и огород","9 сад и огород","9 сад и огород"]
[null,"9 сад и огород","9 сад и огород","9 сад и огород","9 сад и огород"]
[null,"9 сад и огород","9 сад и огород","9 сад и огород","9 сад и огород"]